fUSD/lending_fUSD_20240201
["ID","MTS","AMOUNT","RATE_DAILY","PERIOD"]
[313147481,1706811038000,-636.9005323,0.00022667,2]
[313147482,1706811038024,-60699.48514604,0.00022667,2]
[313147483,1706811038033,-9760.7759,0.00022668,2]
[313147484,1706811038043,-16812.34038914,0.00022668,2]
[313147485,1706811038052,-155.0,0.00022668,2]
[313147486,1706811038060,-3635.78545975,0.00022669,2]
[313147487,1706811038069,-100000.0,0.0002267,2]
[313147488,1706811038078,-3706.0245,0.0002267,2]
[313147489,1706811038087,-245000.0,0.0002267,2]
[313147490,1706811038096,-22656.5085,0.0002267,2]
[313147491,1706811038105,-163.87452071,0.00022725,2]
[313147492,1706811038114,-800.0,0.0002274,2]
[313147493,1706811038123,-400.0,0.0002274,2]
[313147494,1706811038132,-874.8296,0.0002274,10]
[313147495,1706811038142,-11474.89816072,0.00022765,2]
[313147496,1706811038151,-732.23,0.00022768,2]
[313147497,1706811038160,-8654.44832441,0.00022768,2]
[313147498,1706811038170,-186.69496292,0.00022768,2]
[313147499,1706811038179,-296.21525414,0.00022768,2]
[313147500,1706811038189,-2137.33040402,0.00022768,2]
[313147501,1706811038200,-835.5122752,0.00022768,2]
[313147502,1706811038209,-20251.92140554,0.00022768,2]
[313147503,1706811038219,-157.73561839,0.00022768,2]
[313147504,1706811038228,-831.61927221,0.00022768,2]
[313147505,1706811038238,-504.03826774,0.00022768,2]
[313147506,1706811038247,-315.18305531,0.00022768,2]
[313147507,1706811038257,-967.43524386,0.00022768,2]
[313147508,1706811038266,-294.02403229,0.00022768,2]
[313147510,1706811038276,-383.76753435,0.00022768,2]
[313147511,1706811038285,-353.17177551,0.00022768,2]
[313147512,1706811038295,-155.43158686,0.00022768,2]
[313147513,1706811038304,-1122.12658466,0.00022768,2]
[313147514,1706811038313,-392.87874065,0.00022768,2]
[313147515,1706811038322,-241.07606728,0.00022768,2]
[313147516,1706811038331,-228.3602233,0.00022768,2]
[313147517,1706811038340,-481.02562885,0.00022768,2]
[313147518,1706811038350,-314.20154029,0.00022768,2]
[313147519,1706811038359,-155.78698594,0.00022768,2]
[313147520,1706811038368,-155.0,0.00022768,2]
[313147521,1706811038377,-282.21611749,0.00022768,2]
[313147523,1706811038386,-269.95069429,0.00022768,2]
[313147525,1706811038395,-155.0744322,0.00022768,2]
[313147527,1706811038404,-432.75226238,0.00022768,2]
[313147529,1706811038413,-1245.40466885,0.00022768,2]
[313147531,1706811038422,-172.02741418,0.00022768,2]
[313147533,1706811038431,-157.53276897,0.00022768,2]
[313147536,1706811038440,-351.44940533,0.00022768,2]
[313147538,1706811038449,-155.54125996,0.00022768,2]
[313147541,1706811038459,-155.0,0.00022768,2]
[313147543,1706811038468,-201.26906544,0.00022768,2]
[313147545,1706811038477,-157.49371138,0.00022768,2]
[313147547,1706811038486,-155.67536418,0.00022768,2]
[313147549,1706811038495,-410.45065952,0.00022768,2]
[313147551,1706811038504,-156.73401959,0.00022768,2]
[313147553,1706811038513,-199.03575703,0.00022768,2]
[313147555,1706811038522,-246.91049352,0.00022768,2]
[313147557,1706811038531,-207.49720552,0.00022768,2]
[313147559,1706811038539,-164.30232967,0.00022768,2]
[313147561,1706811038549,-1856.59324209,0.00022768,2]
[313147563,1706811038558,-524.26850226,0.00022768,2]
[313147565,1706811038566,-155.0,0.00022768,2]
[313147567,1706811038575,-156.62849969,0.00022768,2]
[313147569,1706811038584,-259.70462571,0.00022768,2]
[313147571,1706811038593,-3234.95429051,0.00022768,2]
[313147573,1706811038602,-155.44390996,0.00022768,2]
[313147575,1706811038611,-426.96015302,0.00022768,2]
[313147577,1706811038621,-233.3484501,0.00022768,2]
[313147579,1706811038630,-155.46065038,0.00022768,2]
[313147581,1706811038639,-324.04339551,0.00022768,2]
[313147583,1706811038648,-228.83453251,0.00022768,2]
[313147585,1706811038657,-738.48,0.00022769,2]
[313147587,1706811038666,-163.87452071,0.00022783,2]
[313147588,1706811038676,-720.42,0.00022795,2]
[313147590,1706811038685,-732.77,0.00022795,2]
[313147592,1706811038694,-155.0,0.000228,2]
[313147594,1706811038703,-158.99,0.00022824,2]
[313147596,1706811038712,-163.87452071,0.00022842,2]
[313147598,1706811038721,-500.0,0.00022888,2]
[313147600,1706811038730,-237.8275,0.000229,2]
[313147602,1706811038739,-163.87452071,0.000229,2]
[313147604,1706811038749,-154.21996553,0.000229,2]
[313147606,1706811038758,-1755.23008988,0.000229,2]
[313147608,1706811038767,-375.10519877,0.000229,2]
[313147610,1706811038776,-5000.0,0.000229,2]
[313147612,1706811038785,-3215.38229018,0.000229,2]
[313147614,1706811038794,-2460.14988104,0.000229,2]
[313147616,1706811038803,-410.22696827,0.000229,4]
[313147618,1706811038813,-498.98090438,0.000229,2]
[313147620,1706811038822,-12557.68322824,0.000229,2]
[313147622,1706811038831,-602.77307627,0.000229,6]
[313147624,1706811038840,-70840.69392162,0.000229,2]
[313147625,1706811038849,-343.06270534,0.00022986,2]
[313147626,1706811038859,-327.82736253,0.00022986,2]
[313147627,1706811038869,-344.74329012,0.00022987,2]
[313147628,1706811038879,-39194.97845797,0.00022987,2]
[313147629,1706811038890,-341.19258033,0.0002299,2]
[313147630,1706811038900,-341.19258033,0.0002299,2]
[313147631,1706811039073,-860.83950855,0.00022997,2]
[313147632,1706811039083,-4248.54360956,0.00022997,2]
[313147633,1706811039092,-500.0,0.00022999,2]
[313147634,1706811039101,-500.0,0.00022999,2]
[313147635,1706811039110,-500.0,0.00022999,2]
[313147636,1706811039120,-500.0,0.00022999,2]
[313147637,1706811039128,-419.3896757,0.00022999,2]
[313147638,1706811039137,-500.0,0.00022999,2]
[313147639,1706811039148,-504.32460233,0.00022999,2]
[313147640,1706811039157,-500.0,0.00022999,2]
[313147641,1706811039166,-500.0,0.00022999,2]
[313147642,1706811039178,-353.4454689,0.00022999,2]
[313147643,1706811039188,-500.0,0.00022999,2]
[313147644,1706811039198,-500.0,0.00022999,2]
[313147645,1706811039208,-342.63123489,0.00022999,2]
[313147646,1706811039217,-621.51919018,0.00022999,2]
[313147647,1706811039226,-500.0,0.00022999,2]
[313147648,1706811039235,-500.0,0.00022999,2]
[313147649,1706811039246,-500.0,0.00022999,2]
[313147650,1706811039255,-500.0,0.00022999,2]
[313147651,1706811039265,-500.0,0.00022999,2]
[313147652,1706811039276,-500.0,0.00022999,2]
[313147653,1706811039285,-500.0,0.00022999,2]
[313147654,1706811039294,-500.0,0.00022999,2]
[313147655,1706811039303,-500.0,0.00022999,2]
[313147656,1706811039312,-500.0,0.00022999,2]
[313147657,1706811039321,-563.10109569,0.00022999,2]
[313147658,1706811039330,-500.0,0.00022999,2]
[313147659,1706811039339,-500.0,0.00022999,2]
[313147660,1706811039348,-297.19442955,0.00022999,2]
[313147661,1706811039357,-500.0,0.00022999,2]
[313147662,1706811039368,-500.0,0.00022999,2]
[313147663,1706811039377,-500.0,0.00022999,2]
[313147664,1706811039386,-500.0,0.00022999,2]
[313147665,1706811039395,-500.0,0.00022999,2]
[313147666,1706811039405,-500.0,0.00022999,2]
[313147667,1706811039415,-500.0,0.00022999,2]
[313147668,1706811039425,-178.79082596,0.00022999,2]
[313147669,1706811039435,-423.35993203,0.00022999,2]
[313147670,1706811039444,-500.0,0.00022999,2]
[313147671,1706811039454,-357.11876471,0.00022999,10]
[313147672,1706811039463,-358.65386715,0.00022999,2]
[313147673,1706811039473,-50116.96332178,0.00022999,2]
[313147674,1706811039482,-557.59616014,0.00022999,2]
[313147675,1706811039491,-350.0,0.00022999,2]
[313147676,1706811039500,-455.0,0.00022999,2]
[313147677,1706811039514,-172.03317914,0.00023,3]
[313147678,1706811039557,-440941.39970238,0.00023,3]
[313147679,1706811039566,-16959290.68082781,0.00023,2]
[313147680,1706811039579,-406.46916604,0.00023,2]
[313147681,1706811039591,-1686.35902539,0.00023,2]
[313147682,1706811039610,-39055.03021432,0.00023,2]
[313147683,1706811039622,-42545.5532522,0.00023,2]
[313147684,1706811039634,-481.70408771,0.00023,2]
[313147685,1706811039645,-326.45,0.00023,2]
[313147686,1706811039682,-729.74969985,0.00023,2]
[313147687,1706811039693,-266.29936235,0.00023,2]
[313147688,1706811039712,-838.226,0.00023,2]
[313147692,1706811041152,-1624.88455476,0.00022615,2]
[313147693,1706811041161,-11344.22870676,0.00023,2]
[313147694,1706811041172,-405.96737448,0.00023,2]
[313147695,1706811042517,-1651.6600008,0.00023,2]
[313147712,1706811042963,-1405.81876783,0.00023,2]
[313147713,1706811043020,-18661.08602658,0.00023,2]
[313147714,1706811043032,-4932.72963449,0.00023,2]
[313147715,1706811043077,-428.15246855,0.00023,2]
[313147716,1706811043088,-292295.85777287,0.00023,2]
[313147717,1706811043137,-2725.42000001,0.00023,2]
[313147718,1706811043148,-388.93617367,0.00023,2]
[313147719,1706811043192,-2246.02631004,0.00023,2]
[313147720,1706811043250,-377.08973787,0.000229,2]
[313147721,1706811043262,-45.86087445,0.000229,2]
[313147722,1706811043271,-419.05112535,0.00023,2]
[313147725,1706811046037,-1624.88455476,0.00022663,2]
[313147726,1706811046046,-44939.62674155,0.00023,2]
[313147727,1706811046151,-123477.1044908,0.00023,2]
[313147728,1706811046163,-2142.65,0.00023,2]
[313147733,1706811143934,161.72367135,0.00022467,2]
[313147734,1706811175680,1839.486,0.00022467,2]
[313147735,1706811275699,235.02,0.00022252,2]
[313147736,1706811330205,846.43,0.000223,2]
[313147737,1706811339793,157.43,0.00022446,2]
[313147738,1706811377448,2000.0,0.00022245,2]
[313147739,1706811413563,318.37,0.00022214,2]
[313147740,1706811468528,185.87,0.00022248,2]
[313147741,1706811555172,497.55,0.00022159,2]
[313147742,1706811598198,341.13,0.00020099,2]
[313147743,1706811598692,341.13,0.00022362,2]
[313147744,1706811601334,297.59,0.00022016,3]
[313147745,1706811735900,1228.73,0.00022075,2]
[313147746,1706811754396,544.91,0.00022012,2]
[313147747,1706811783037,157.43,0.00022227,2]
[313147748,1706811804166,705.35,0.00022108,2]
[313147749,1706811844139,206.0,0.0002155,2]
[313147750,1706811949394,161.72367135,0.00022441,2]
[313147751,1706812025271,2500.0,0.0002247,2]
[313147752,1706812096136,750.0,0.00021869,2]
[313147753,1706812100383,699.97079885,0.000225,2]
[313147754,1706812115552,155.0,0.000225,2]
[313147755,1706812121479,526.72471438,0.000225,2]
[313147756,1706812142659,203.66449039,0.000225,2]
[313147757,1706812151592,307.01,0.00019983,2]
[313147758,1706812152004,307.01,0.00022247,2]
[313147768,1706812232151,-284.1871695,0.00022533,2]
[313147769,1706812232162,-526.72471438,0.00022534,2]
[313147770,1706812232172,-2418.97396021,0.00022536,2]
[313147771,1706812232181,-445.69258364,0.00022541,2]
[313147772,1706812232190,-368.75120608,0.00022559,2]
[313147773,1706812232201,-358.00879392,0.00022559,2]
[313147774,1706812232210,-141.94120608,0.00022565,2]
[313147775,1706812232221,-554.27734322,0.00022565,2]
[313147776,1706812232230,-98.72266478,0.00022566,2]
[313147777,1706812232242,-51.27733522,0.00022566,2]
[313147778,1706812232251,-834.72266478,0.00022567,2]
[313147779,1706812232262,-165.27733522,0.00022567,2]
[313147780,1706812232271,-16424.45985367,0.00022567,2]
[313147781,1706812232287,-2734.84596553,0.00022567,2]
[313147782,1706812232310,-1031.76632145,0.00022567,2]
[313147783,1706812232321,-641.78023561,0.00022567,2]
[313147784,1706812232337,-17390.6593575,0.00022567,2]
[313147785,1706812232348,-928.53687171,0.00022567,2]
[313147786,1706812232367,-910.3533981,0.00022567,2]
[313147798,1706812238112,-1439.42039643,0.00022567,2]
[313147799,1706812238122,-300.0,0.00022567,2]
[313147800,1706812238131,-5524.39,0.00022567,2]
[313147801,1706812238141,-174.71935686,0.00022568,2]
[313147802,1706812238151,-499.99,0.00022568,2]
[313147803,1706812238162,-1377.53,0.00022568,2]
[313147804,1706812238171,-155.0,0.00022568,2]
[313147805,1706812238181,-203.38686336,0.00022568,2]
[313147806,1706812238191,-408.13209907,0.00022568,2]
[313147807,1706812238201,-479.8011,0.0002257,2]
[313147808,1706812238210,-6644.24618428,0.0002257,2]
[313147809,1706812238232,-2410.01001848,0.0002257,2]
[313147818,1706812238312,-90945.74379724,0.0002257,2]
[313147819,1706812238562,-150.0,0.00022745,2]
[313147820,1706812238572,-150.0,0.00022752,2]
[313147821,1706812238583,-43676.21622787,0.0002277,2]
[313147823,1706812238596,-13379.68918983,0.0002277,2]
[313147825,1706812238615,-8605.4408,0.0002277,2]
[313147832,1706812240741,-973.65364066,0.0002277,2]
[313147833,1706812240854,-505.31019632,0.0002277,2]
[313147834,1706812240914,-30166.07409436,0.0002277,2]
[313147860,1706812243137,-1991.42266742,0.0002277,2]
[313147861,1706812243249,-411.22,0.0002277,2]
[313147862,1706812243261,-50821.97318354,0.0002277,2]
[313147863,1706812243270,-254.53226998,0.000228,2]
[313147864,1706812243279,-150.0,0.00022806,2]
[313147865,1706812243289,-150.0,0.00022809,2]
[313147866,1706812243298,-206.0,0.00022812,2]
[313147867,1706812243307,-150.0,0.00022817,2]
[313147868,1706812243316,-150.0,0.00022834,2]
[313147869,1706812243326,-222.49401335,0.00022845,2]
[313147870,1706812243336,-150.0,0.0002286,2]
[313147871,1706812243345,-150.0,0.00022861,2]
[313147872,1706812243354,-150.0,0.00022896,2]
[313147873,1706812243363,-168.28604614,0.000229,2]
[313147874,1706812243372,-154.12516971,0.000229,2]
[313147875,1706812243382,-5000.0,0.000229,2]
[313147876,1706812243391,-302.97572168,0.000229,2]
[313147877,1706812243400,-1270.28616302,0.000229,2]
[313147878,1706812243410,-1532.39461192,0.000229,2]
[313147879,1706812243419,-157.5419934,0.000229,2]
[313147880,1706812243429,-176.00558822,0.000229,2]
[313147881,1706812243438,-150.0,0.00022902,2]
[313147882,1706812243447,-150.0,0.0002291,2]
[313147883,1706812243456,-150.0,0.00022914,2]
[313147884,1706812243465,-150.0,0.00022927,2]
[313147885,1706812243474,-150.0,0.00022986,2]
[313147886,1706812243483,-494.84174762,0.00022998,2]
[313147887,1706812243493,-371.95881086,0.00022998,2]
[313147888,1706812243502,-220.91396861,0.00022998,2]
[313147889,1706812243512,-1255.14945143,0.00022998,2]
[313147890,1706812243522,-387.5983711,0.00022998,2]
[313147891,1706812243531,-199.65296929,0.00022998,2]
[313147892,1706812243540,-583.2561244,0.00022998,2]
[313147893,1706812243550,-24394.97966401,0.00022998,2]
[313147894,1706812243559,-401.38245199,0.00022998,2]
[313147895,1706812243569,-460.79391895,0.00022998,2]
[313147896,1706812243580,-314.91414561,0.00022998,2]
[313147897,1706812243591,-502.41371894,0.00022998,2]
[313147898,1706812243600,-474.20164571,0.00022998,2]
[313147899,1706812243610,-292.70291374,0.00022998,2]
[313147900,1706812243619,-10546.99948315,0.00022998,2]
[313147901,1706812243630,-7195.74020548,0.00022998,2]
[313147902,1706812243639,-266.01806587,0.00022998,2]
[313147903,1706812243648,-310.77911582,0.00022998,2]
[313147904,1706812243658,-525.34573836,0.00022998,2]
[313147905,1706812243669,-338.32247396,0.00022998,2]
[313147906,1706812243679,-158.88900536,0.00022998,7]
[313147907,1706812243688,-163.36273261,0.00022999,2]
[313147908,1706812243698,-526.22979665,0.00022999,2]
[313147909,1706812243707,-155.0,0.00022999,2]
[313147910,1706812243717,-923.39,0.00022999,2]
[313147911,1706812243727,-16566.05095485,0.00022999,2]
[313147912,1706812243736,-1000.0,0.00022999,2]
[313147913,1706812243745,-1000.0,0.00022999,2]
[313147914,1706812243755,-500.0,0.00022999,2]
[313147915,1706812243764,-361.1276721,0.00022999,2]
[313147916,1706812243774,-468.93032871,0.00022999,2]
[313147917,1706812243783,-539.15832886,0.00022999,2]
[313147918,1706812243792,-436.45575705,0.00022999,2]
[313147919,1706812243801,-451.2973807,0.00022999,2]
[313147920,1706812243811,-500.0,0.00022999,2]
[313147921,1706812243825,-500.0,0.00022999,2]
[313147922,1706812243834,-500.0,0.00022999,2]
[313147923,1706812243843,-406.03364067,0.00022999,2]
[313147924,1706812243852,-153.77884804,0.00022999,2]
[313147925,1706812243861,-350.0,0.00022999,2]
[313147926,1706812243871,-148607.66980017,0.00023,3]
[313147927,1706812243882,-13203.23490305,0.00023,3]
[313147928,1706812243893,-1741.02936066,0.00023,3]
[313147929,1706812243904,-233295.32566826,0.00023,3]
[313147930,1706812243915,-96622.66892183,0.00023,2]
[313147931,1706812243924,-813.69460712,0.00023,2]
[313147932,1706812243935,-615873.80281406,0.00023,2]
[313147933,1706812243955,-400.0,0.00023,2]
[313147934,1706812244052,-1034.12906523,0.00023,2]
[313147938,1706812246151,-254.11616158,0.00022769,2]
[313147939,1706812246284,-273.25670201,0.00022769,2]
[313147940,1706812246293,-854.10876394,0.00023,2]
[313147941,1706812246325,-16807.42618397,0.00023,2]
[313147942,1706812246338,-382.28943785,0.00023,2]
[313147943,1706812246386,-5415.0,0.00023,2]
[313147944,1706812246398,-74291.10602494,0.00023,2]
[313147945,1706812246409,-257.05345513,0.00023,2]
[313147946,1706812246457,-1241.89502368,0.00023,2]
[313147980,1706812255724,1260.76028766,0.00022247,5]
[313147981,1706812310191,155.31524812,0.00022247,2]
[313147982,1706812313292,257.81361471,0.00022247,2]
[313147983,1706812316286,533.51070887,0.00022247,2]
[313147984,1706812317360,183.48732554,0.00022247,2]
[313147985,1706812317864,155.0,0.00022247,2]
[313147986,1706812333806,155.0,0.00022247,2]
[313147987,1706812350105,1100.85350938,0.00022247,2]
[313147988,1706812351779,155.21885268,0.00022247,2]
[313147989,1706812362097,888.8532587,0.00022247,2]
[313147990,1706812365993,155.0,0.00022247,2]
[313147991,1706812373461,155.0,0.00022247,2]
[313147992,1706812381986,155.2215676,0.00022247,2]
[313147993,1706812393392,198.47900516,0.00022247,2]
[313147994,1706812533854,206.0,0.00021812,2]
[313147995,1706812577757,308.08,0.00021395,2]
[313147996,1706812717908,157.43,0.00022102,2]
[313147997,1706812801638,250.0,0.00021974,2]
[313147998,1706812802204,661.66,0.00021974,2]
[313147999,1706812840276,745.3,0.00021938,2]
[313148001,1706812889292,305.02,0.00022036,2]
[313148002,1706813009999,292.67,0.00020062,2]
[313148003,1706813010393,292.67,0.00022326,2]
[313148004,1706813033516,162.18,0.00022007,2]
[313148005,1706813061417,23900.0,0.00021938,2]
[313148006,1706813238898,551.38,0.00021903,2]
[313148008,1706813253621,206.0,0.00022058,2]
[313148010,1706813300852,403.76,0.00021908,2]
[313148011,1706813327605,185.87,0.00021915,2]
[313148012,1706813343774,206.0,0.00022058,2]
[313148020,1706813432303,-525.57087113,0.00022669,2]
[313148021,1706813432313,-488.8727,0.0002267,2]
[313148022,1706813432322,-150.0,0.00022704,2]
[313148023,1706813432331,-162.05839473,0.00022726,2]
[313148024,1706813432340,-312.41730151,0.00022744,2]
[313148025,1706813432364,-1187.58269849,0.00022744,2]
[313148026,1706813432373,-1337.58372579,0.00022771,2]
[313148027,1706813432385,-162.41627421,0.00022771,2]
[313148028,1706813432394,-370.05487285,0.00022815,2]
[313148029,1706813432432,-129.93512715,0.00022815,2]
[313148030,1706813432441,-199.16261391,0.00022822,2]
[313148031,1706813432453,-100.83738609,0.00022822,2]
[313148032,1706813432462,-150.0,0.00022875,2]
[313148033,1706813432471,-503.01261421,0.00022896,2]
[313148034,1706813432493,-996.98738579,0.00022896,2]
[313148035,1706813432502,-408.13209907,0.00022898,2]
[313148036,1706813432512,-5567.6305842,0.00022899,2]
[313148037,1706813432522,-780.0,0.000229,2]
[313148038,1706813432531,-680.42030537,0.000229,2]
[313148039,1706813432540,-566.82962557,0.000229,2]
[313148040,1706813432556,-113.59067981,0.000229,2]
[313148041,1706813432565,-188.8773204,0.000229,2]
[313148043,1706813438304,-3533.88886504,0.000229,2]
[313148044,1706813438364,-363.61460823,0.000229,2]
[313148045,1706813438376,-1392.0228571,0.000229,2]
[313148046,1706813438425,-2840.39685999,0.000229,2]
[313148047,1706813438437,-2263.28392727,0.000229,2]
[313148048,1706813438448,-848.26710872,0.000229,2]
[313148049,1706813438542,-22133.83429511,0.000229,2]
[313148050,1706813438553,-15924.11175814,0.000229,2]
[313148051,1706813438563,-154.1251697,0.000229,2]
[313148052,1706813438572,-5000.0,0.000229,2]
[313148053,1706813438581,-224.62232916,0.000229,6]
[313148054,1706813438591,-1111.50039259,0.000229,2]
[313148055,1706813438600,-183.18964412,0.000229,2]
[313148056,1706813438609,-578.19241258,0.000229,2]
[313148057,1706813438618,-307.40170157,0.00022989,2]
[313148058,1706813438627,-196.42295746,0.00022999,2]
[313148059,1706813438637,-1000.0,0.00022999,2]
[313148060,1706813438649,-5228.09334435,0.00023,3]
[313148061,1706813438662,-2005.097984,0.00023,3]
[313148062,1706813438677,-585.60278492,0.00023,3]
[313148063,1706813438688,-5620.90691572,0.00023,3]
[313148064,1706813438699,-12899.59531826,0.00023,3]
[313148065,1706813438711,-48217.05140344,0.00023,3]
[313148072,1706813441708,-796.43989522,0.00023,3]
[313148113,1706813443750,-429.16662,0.00023,3]
[313148126,1706813443969,-9548.8957744,0.00023,3]
[313148127,1706813443981,-2989.60880818,0.00023,3]
[313148128,1706813443992,-1676.74500932,0.00023,3]
[313148130,1706813446360,-22207.90224145,0.00023,3]
[313148131,1706813446590,-652.22971811,0.00023,3]
[313148185,1706813463681,204.0,0.00022058,2]
[313148186,1706813477808,200.0,0.00021918,2]
[313148187,1706813527693,486.58,0.00022358,2]
[313148188,1706813540317,215.98685375,0.0002249,2]
[313148198,1706813578811,170.5,0.00022238,2]
[313148199,1706813579034,170.5,0.00022299,2]
[313148200,1706813579236,170.5,0.0002236,2]
[313148201,1706813579458,170.5,0.00022421,2]
[313148202,1706813579684,170.5,0.00022482,2]
[313148203,1706813585930,309.42,0.00019968,2]
[313148204,1706813586249,309.42,0.00022232,2]
[313148205,1706813621834,23900.0,0.00021873,2]
[313148206,1706813626207,4379.5204,0.00022414,2]
[313148207,1706813626834,6653.0,0.0002,2]
[313148208,1706813631616,2294.54,0.00021918,2]
[313148209,1706813675114,188.47457395,0.00022412,2]
[313148210,1706813698035,951.94,0.00021842,2]
[313148211,1706813703847,155.0,0.00022501,2]
[313148212,1706813705121,4500.57991331,0.00022501,2]
[313148213,1706813711976,1049.30235433,0.00022412,2]
[313148214,1706813716982,1049.30235427,0.00022482,2]
[313148215,1706813721575,4258.86050347,0.00022501,2]
[313148216,1706813728853,526.65973143,0.00022501,2]
[313148217,1706813749590,676.99,0.00021769,2]
[313148218,1706813782908,200.0,0.00021918,2]
[313148219,1706813822155,1398.0677,0.00022411,2]
[313148220,1706813834649,236.27,0.00022411,2]
[313148221,1706813839226,412.14,0.00021766,2]
[313148222,1706813845418,150.0,0.00022468,2]
[313148223,1706813867467,3470.70284634,0.00022284,2]
[313148224,1706813928747,176.8,0.00022,2]
[313148225,1706813943710,206.0,0.0002243,2]
[313148226,1706813948064,11150.6417,0.00022411,2]
[313148227,1706813997739,150.0,0.00022475,2]
[313148228,1706813998711,1288.11736516,0.00021951,2]
[313148229,1706813999025,1288.11736516,0.00022401,2]
[313148230,1706813999837,1288.11736516,0.00022479,2]
[313148231,1706814010084,150.44,0.0002193,2]
[313148232,1706814010277,150.44,0.00022002,2]
[313148233,1706814010523,150.44,0.00022073,2]
[313148234,1706814010752,150.44,0.00022145,2]
[313148235,1706814010981,150.44,0.00022216,2]
[313148236,1706814011178,150.44,0.00022287,2]
[313148237,1706814011434,150.44,0.00022359,2]
[313148238,1706814011655,150.44,0.0002243,2]
[313148239,1706814012728,163.42827122,0.00022409,2]
[313148240,1706814017908,163.42827114,0.00022454,2]
[313148241,1706814022756,163.42827114,0.00022498,2]
[313148242,1706814022804,351.2,0.00019847,2]
[313148243,1706814023327,351.2,0.00022111,2]
[313148244,1706814030035,290.82611933,0.00022501,2]
[313148245,1706814129610,2249.128,0.00022411,2]
[313148246,1706814132707,786.97676572,0.00022412,2]
[313148247,1706814137664,786.9767657,0.00022482,2]
[313148248,1706814145621,854.1567833,0.00022501,4]
[313148249,1706814169616,458.4,0.00021749,2]
[313148250,1706814229530,23900.0,0.00021751,2]
[313148251,1706814261386,1000.0,0.00022411,2]
[313148252,1706814274945,793.28,0.00021753,2]
[313148253,1706814292415,185.87,0.00021767,2]
[313148254,1706814318230,590.23257431,0.00022412,2]
[313148255,1706814323000,590.23257427,0.00022482,2]
[313148256,1706814424868,150.44,0.00021926,2]
[313148257,1706814425079,150.44,0.00022069,2]
[313148258,1706814425308,150.44,0.00022211,2]
[313148259,1706814425504,150.44,0.00022354,2]
[313148260,1706814426066,150.44,0.00022497,2]
[313148261,1706814428082,163.42827114,0.00022409,2]
[313148262,1706814433072,163.42827114,0.0002247,2]
[313148263,1706814445535,200.0,0.00021767,2]
[313148264,1706814503477,442.67443072,0.00022412,2]
[313148265,1706814508421,442.6744307,0.00022482,2]
[313148266,1706814525464,250.0,0.00021918,2]
[313148267,1706814565368,176.8,0.00022,2]
[313148268,1706814579623,166.59,0.00021769,2]
[313148269,1706814579972,327.75,0.00019844,2]
[313148270,1706814580474,327.75,0.00022107,2]
[313148271,1706814604320,191.81,0.00017409,2]
[313148272,1706814610036,633.28,0.00021769,2]
[313148273,1706814614943,193.88407955,0.00022501,2]
[313148282,1706814631470,-150.0,0.00022507,2]
[313148283,1706814631480,-2634.51649125,0.00022508,2]
[313148284,1706814631492,-16418.51051069,0.00022508,2]
[313148285,1706814631502,-1757.69731679,0.00022509,2]
[313148286,1706814631511,-178.0784644,0.00022509,2]
[313148287,1706814631520,-1022.3080561,0.00022509,2]
[313148288,1706814631530,-525.79986187,0.00022509,2]
[313148289,1706814631539,-155.0,0.0002251,7]
[313148290,1706814631548,-43162.14244297,0.00022511,2]
[313148291,1706814631559,-1502.28437207,0.00022511,2]
[313148292,1706814631571,-479.70601001,0.00022511,2]
[313148293,1706814631582,-1603.04621236,0.00022511,2]
[313148294,1706814631593,-250.0,0.00022511,2]
[313148295,1706814631605,-587.5153374,0.00022511,2]